[Event "EYCC Open U10 2021"]
[Site "Tornelo"]
[Date "2021.10.15"]
[Round "2.12"]
[White "Demchenko, Maksim Dm"]
[Black "Wallinger, Nikolaus"]
[Result "1-0"]
[ECO "B43"]
[WhiteElo "1615"]
[BlackElo "1245"]
[Annotator "NA"]
[PlyCount "91"]
[EventDate "2021.10.15"]
[EventType "swiss"]
[EventCountry "NET"]
[SourceTitle "playchess.com"]
[Source "ChessBase"]
[SourceQuality "1"]
[TimeControl "5400+30"]

1. e4 {[%emt 0:00:30]} c5 {[%emt 0:00:33]} 2. Nf3 {[%emt 0:00:03]} e6 {[%emt 0:00:01]} 3. d4 {[%emt 0:00:02]} cxd4 {[%emt 0:00:09]} 4. Nxd4 {[%emt 0:00:01]} a6 {[%emt 0:00:09]} 5. Nc3 {[%emt 0:00:13]} b5 {[%emt 0:00:06]} 6. a3 {[%emt 0:15:27]} Bb7 {[%emt 0:00:44]} 7. Bd3 {[%emt 0:00:54]} Bc5 {[%emt 0:00:17]} 8. Nb3 {[%emt 0:00:27]} Bb6 {[%emt 0:00:34]} 9. O-O {[%emt 0:00:15]} Ne7 {[%emt 0:00:36]} 10. Bf4 {[%emt 0:01:11]} Ng6 {[%emt 0:00:16]} 11. Bd6 {[%emt 0:00:56]} Bc7 {[%emt 0:02:19]} 12. Bxb5 {[%emt 0:12:38]} axb5 {[%emt 0:02:24]} 13. Nxb5 {[%emt 0:00:09]} Bb6 {[%emt 0:00:32]} 14. Bb4 {[%emt 0:00:16]} Bc7 {[%emt 0:01:12]} 15. Ba5 {[%emt 0:06:17]} Bxa5 {[%emt 0:01:37]} 16. Nd6+ {[%emt 0:00:04]} Kf8 {[%emt 0:00:23]} 17. Nxb7 {[%emt 0:00:03]} Qc7 {[%emt 0:03:58]} 18. N7xa5 {[%emt 0:00:22]} Rxa5 {[%emt 0:00:09]} 19. Nxa5 {[%emt 0:00:07]} Qxa5 {[%emt 0:00:10]} 20. Qd6+ {[%emt 0:00:03]} Kg8 {[%emt 0:00:35]} 21. Qxb8+ {[%emt 0:01:38]} Nf8 {[%emt 0:00:08]} 22. b4 {[%emt 0:00:35]} Qg5 {[%emt 0:00:13]} 23. b5 {[%emt 0:00:33]} h6 {[%emt 0:00:07]} 24. b6 {[%emt 0:00:02]} Kh7 {[%emt 0:00:06]} 25. b7 {[%emt 0:00:03]} Ng6 {[%emt 0:00:05]} 26. Qg3 {[%emt 0:00:02]} Nf4 {[%emt 0:01:11]} 27. Qxg5 {[%emt 0:00:06]} hxg5 {[%emt 0:00:08]} 28. Rfb1 {[%emt 0:00:02]} Rb8 {[%emt 0:00:20]} 29. a4 {[%emt 0:00:03]} Ne2+ {[%emt 0:00:17]} 30. Kf1 {[%emt 0:00:03]} Nc3 {[%emt 0:00:04]} 31. a5 {[%emt 0:00:08]} Nxe4 {[%emt 0:00:47]} 32. a6 {[%emt 0:00:03]} Nd2+ {[%emt 0:00:04]} 33. Ke2 {[%emt 0:00:02]} Nxb1 {[%emt 0:00:07]} 34. Rxb1 {[%emt 0:00:02]} Kg6 {[%emt 0:00:24]} 35. a7 {[%emt 0:00:03]} Rxb7 {[%emt 0:00:30]} 36. Rxb7 {[%emt 0:00:06]} g4 {[%emt 0:00:05]} 37. a8=Q {[%emt 0:00:03]} g3 {[%emt 0:00:10]} 38. hxg3 {[%emt 0:00:04]} f5 {[%emt 0:00:13]} 39. Rxd7 {[%emt 0:00:04]} f4 {[%emt 0:00:29]} 40. Qe4+ {[%emt 0:00:06]} Kf6 {[%emt 0:00:16]} 41. Qxf4+ {[%emt 0:00:04]} Kg6 {[%emt 0:00:14]} 42. Qg4+ {[%emt 0:00:02]} Kf6 {[%emt 0:00:12]} 43. Qxg7+ {[%emt 0:00:03]} Kf5 {[%emt 0:00:14]} 44. Ke3 {[%emt 0:00:13]} e5 {[%emt 0:00:19]} 45. Re7 {[%emt 0:00:19]} e4 {[%emt 0:00:07]} 46. g4# {[%emt 0:00:03]} 1-0

[Event "EYCC Open U10 2021"]
[Site "Tornelo"]
[Date "2021.10.15"]
[Round "3.1"]
[White "Surikov, Alexey"]
[Black "Ahmad, Khagan"]
[Result "1-0"]
[ECO "E11"]
[WhiteElo "1548"]
[BlackElo "2009"]
[Annotator "NA"]
[PlyCount "69"]
[EventDate "2021.10.15"]
[EventType "swiss"]
[EventCountry "NET"]
[SourceTitle "playchess.com"]
[Source "ChessBase"]
[SourceQuality "1"]
[TimeControl "5400+30"]

1. d4 {[%emt 0:00:30]} Nf6 {[%emt 0:00:36]} 2. Nf3 {[%emt 0:00:18]} e6 {[%emt 0:00:07]} 3. c4 {[%emt 0:00:04]} d5 {[%emt 0:00:38]} 4. g3 {[%emt 0:00:07]} Bb4+ {[%emt 0:00:22]} 5. Bd2 {[%emt 0:00:10]} Be7 {[%emt 0:00:01]} 6. Bg2 {[%emt 0:00:03]} O-O {[%emt 0:00:03]} 7. O-O {[%emt 0:00:12]} Nbd7 {[%emt 0:00:03]} 8. Qc2 {[%emt 0:00:05]} c5 {[%emt 0:01:19]} 9. cxd5 {[%emt 0:01:28]} Nxd5 {[%emt 0:01:57]} 10. e4 {[%emt 0:00:14]} N5f6 {[%emt 0:00:30]} 11. Nc3 {[%emt 0:01:30]} cxd4 {[%emt 0:00:13]} 12. Nxd4 {[%emt 0:00:27]} Nb6 {[%emt 0:00:34]} 13. Nb3 {[%emt 0:02:54]} e5 {[%emt 0:00:14]} 14. Bg5 {[%emt 0:00:40]} Be6 {[%emt 0:00:26]} 15. Rfd1 {[%emt 0:00:53]} Qc7 {[%emt 0:00:44]} 16. Rac1 {[%emt 0:00:19]} Rac8 {[%emt 0:02:08]} 17. Qb1 {[%emt 0:03:13]} Qb8 {[%emt 0:00:09]} 18. Bxf6 {[%emt 0:01:33]} Bxf6 {[%emt 0:00:04]} 19. Nd5 {[%emt 0:00:07]} Bg5 {[%emt 0:00:34]} 20. Rc5 {[%emt 0:01:59]} Bg4 {[%emt 0:05:37]} 21. Rf1 {[%emt 0:01:43]} Nxd5 {[%emt 0:10:00]} 22. exd5 {[%emt 0:02:12]} Qd6 {[%emt 0:00:23]} 23. Rxc8 {[%emt 0:00:21]} Rxc8 {[%emt 0:00:03]} 24. h3 {[%emt 0:00:23]} Bh5 {[%emt 0:00:06]} 25. Qf5 {[%emt 0:00:09]} Qd8 {[%emt 0:01:11]} 26. h4 {[%emt 0:00:15]} Be2 {[%emt 0:01:05]} 27. Re1 {[%emt 0:00:17]} Bxh4 {[%emt 0:00:26]} 28. gxh4 {[%emt 0:00:17]} Bc4 {[%emt 0:00:06]} 29. Qxe5 {[%emt 0:00:17]} h6 {[%emt 0:00:57]} 30. Qe7 {[%emt 0:00:29]} Qb6 {[%emt 0:01:10]} 31. d6 {[%emt 0:00:19]} Rd8 {[%emt 0:03:13]} 32. d7 {[%emt 0:02:31]} Be6 {[%emt 0:00:54]} 33. Nc5 {[%emt 0:00:30]} Qc7 {[%emt 0:00:11]} 34. Nxe6 {[%emt 0:00:19]} fxe6 {[%emt 0:00:10]} 35. Qe8+ {[%emt 0:00:02]} 1-0

[Event "EYCC Open U10 2021"]
[Site "Tornelo"]
[Date "2021.10.15"]
[Round "3.2"]
[White "Besou, Hussain"]
[Black "Cirkovic, Vuk"]
[Result "1-0"]
[ECO "B01"]
[WhiteElo "1995"]
[BlackElo "1474"]
[Annotator "NA"]
[PlyCount "83"]
[EventDate "2021.10.15"]
[EventType "swiss"]
[EventCountry "NET"]
[SourceTitle "playchess.com"]
[Source "ChessBase"]
[SourceQuality "1"]
[TimeControl "5400+30"]

1. e4 {[%emt 0:00:30]} d5 {[%emt 0:01:36]} 2. exd5 {[%emt 0:00:08]} Qxd5 {[%emt 0:00:07]} 3. Nc3 {[%emt 0:00:03]} Qa5 {[%emt 0:00:09]} 4. d4 {[%emt 0:00:04]} Nf6 {[%emt 0:02:05]} 5. Nf3 {[%emt 0:00:06]} c6 {[%emt 0:02:21]} 6. Bd2 {[%emt 0:02:31]} Qc7 {[%emt 0:01:43]} 7. Bc4 {[%emt 0:00:16]} Bf5 {[%emt 0:04:03]} 8. Ne5 {[%emt 0:00:44]} e6 {[%emt 0:02:26]} 9. g4 {[%emt 0:00:36]} Be4 {[%emt 0:02:51]} 10. Nxe4 {[%emt 0:00:11]} Nxe4 {[%emt 0:01:11]} 11. Be3 {[%emt 0:00:24]} Bb4+ {[%emt 0:03:16]} 12. c3 {[%emt 0:00:39]} Nxc3 {[%emt 0:00:52]} 13. bxc3 {[%emt 0:00:06]} Bxc3+ {[%emt 0:00:03]} 14. Kf1 {[%emt 0:00:03]} Bxa1 {[%emt 0:00:14]} 15. Qxa1 {[%emt 0:00:06]} Nd7 {[%emt 0:03:24]} 16. Bf4 {[%emt 0:01:09]} Qb6 {[%emt 0:04:22]} 17. Nxd7 {[%emt 0:00:24]} Kxd7 {[%emt 0:00:07]} 18. Kg2 {[%emt 0:00:04]} g5 {[%emt 0:04:17]} 19. Be5 {[%emt 0:00:22]} Rhg8 {[%emt 0:01:44]} 20. Rb1 {[%emt 0:00:08]} Qa5 {[%emt 0:06:32]} 21. Rxb7+ {[%emt 0:00:06]} Ke8 {[%emt 0:01:31]} 22. Qb2 {[%emt 0:00:29]} Qd8 {[%emt 0:01:12]} 23. Qc2 {[%emt 0:00:35]} Rg6 {[%emt 0:20:16]} 24. Bd3 {[%emt 0:00:56]} Rc8 {[%emt 0:07:23]} 25. Bxg6 {[%emt 0:00:22]} hxg6 {[%emt 0:00:07]} 26. Qc5 {[%emt 0:00:15]} Qd5+ {[%emt 0:06:41]} 27. Qxd5 {[%emt 0:00:06]} cxd5 {[%emt 0:00:26]} 28. Rxa7 {[%emt 0:00:05]} Rc2 {[%emt 0:00:52]} 29. a4 {[%emt 0:00:12]} Ra2 {[%emt 0:00:22]} 30. a5 {[%emt 0:00:07]} f5 {[%emt 0:00:48]} 31. a6 {[%emt 0:00:05]} Kd8 {[%emt 0:00:30]} 32. Ra8+ {[%emt 0:00:15]} Kd7 {[%emt 0:00:04]} 33. a7 {[%emt 0:00:03]} Ra6 {[%emt 0:00:35]} 34. Rh8 {[%emt 0:00:06]} Kc6 {[%emt 0:00:45]} 35. a8=Q+ {[%emt 0:00:12]} Rxa8 {[%emt 0:00:05]} 36. Rxa8 {[%emt 0:00:05]} f4 {[%emt 0:00:03]} 37. Ra6+ {[%emt 0:00:06]} Kd7 {[%emt 0:00:03]} 38. h4 {[%emt 0:00:03]} gxh4 {[%emt 0:00:11]} 39. Bxf4 {[%emt 0:00:05]} Ke7 {[%emt 0:00:02]} 40. Bg5+ {[%emt 0:00:03]} Kf7 {[%emt 0:00:03]} 41. Bxh4 {[%emt 0:00:02]} Kg7 {[%emt 0:00:07]} 42. Ra7+ {[%emt 0:00:05]} 1-0

[Event "EYCC Open U10 2021"]
[Site "Tornelo"]
[Date "2021.10.15"]
[Round "3.3"]
[White "Gulenko, Zakhar"]
[Black "Negrean, Andrei"]
[Result "0-1"]
[ECO "B22"]
[WhiteElo "1524"]
[BlackElo "1847"]
[Annotator "NA"]
[PlyCount "110"]
[EventDate "2021.10.15"]
[EventType "swiss"]
[EventCountry "NET"]
[SourceTitle "playchess.com"]
[Source "ChessBase"]
[SourceQuality "1"]
[TimeControl "5400+30"]

1. e4 {[%emt 0:00:30]} c5 {[%emt 0:00:43]} 2. c3 {[%emt 0:00:04]} d5 {[%emt 0:00:23]} 3. exd5 {[%emt 0:00:04]} Qxd5 {[%emt 0:00:17]} 4. d4 {[%emt 0:00:05]} e6 {[%emt 0:00:30]} 5. Nf3 {[%emt 0:00:07]} Nc6 {[%emt 0:00:33]} 6. Be3 {[%emt 0:00:11]} cxd4 {[%emt 0:00:42]} 7. cxd4 {[%emt 0:00:28]} Nf6 {[%emt 0:01:19]} 8. Nc3 {[%emt 0:00:06]} Qd6 {[%emt 0:00:41]} 9. Be2 {[%emt 0:00:43]} Be7 {[%emt 0:02:05]} 10. O-O {[%emt 0:00:27]} O-O {[%emt 0:01:09]} 11. a3 {[%emt 0:00:28]} b6 {[%emt 0:03:48]} 12. b4 {[%emt 0:04:03]} Bb7 {[%emt 0:06:58]} 13. Qb3 {[%emt 0:00:28]} Rac8 {[%emt 0:06:10]} 14. Rac1 {[%emt 0:00:30]} Rfd8 {[%emt 0:04:47]} 15. Rfd1 {[%emt 0:00:33]} h6 {[%emt 0:09:39]} 16. Nb5 {[%emt 0:03:54]} Qb8 {[%emt 0:02:56]} 17. Ne5 {[%emt 0:02:34]} Nxe5 {[%emt 0:15:05]} 18. Bf4 {[%emt 0:00:38]} Rxc1 {[%emt 0:08:00]} 19. Rxc1 {[%emt 0:02:00]} Nf3+ {[%emt 0:00:46]} 20. Qxf3 {[%emt 0:07:30]} Bxf3 {[%emt 0:00:15]} 21. Bxb8 {[%emt 0:00:05]} Bxe2 {[%emt 0:00:17]} 22. Bc7 {[%emt 0:00:03]} Rd7 {[%emt 0:02:18]} 23. Nxa7 {[%emt 0:01:34]} Nd5 {[%emt 0:01:10]} 24. Bb8 {[%emt 0:00:16]} Bd6 {[%emt 0:05:23]} 25. Bxd6 {[%emt 0:01:05]} Rxa7 {[%emt 0:00:31]} 26. Ra1 {[%emt 0:01:27]} Nc3 {[%emt 0:00:29]} 27. Bf4 {[%emt 0:01:16]} Nb5 {[%emt 0:01:05]} 28. a4 {[%emt 0:01:39]} Nxd4 {[%emt 0:00:21]} 29. Be3 {[%emt 0:00:11]} e5 {[%emt 0:01:01]} 30. f4 {[%emt 0:00:31]} f6 {[%emt 0:00:20]} 31. Kf2 {[%emt 0:01:28]} Bb5 {[%emt 0:00:49]} 32. a5 {[%emt 0:00:11]} bxa5 {[%emt 0:00:47]} 33. Bxd4 {[%emt 0:01:11]} exd4 {[%emt 0:00:09]} 34. bxa5 {[%emt 0:00:03]} d3 {[%emt 0:00:13]} 35. Ke3 {[%emt 0:00:31]} Kf7 {[%emt 0:00:14]} 36. f5 {[%emt 0:00:30]} Ke7 {[%emt 0:00:37]} 37. g4 {[%emt 0:00:12]} Kd6 {[%emt 0:01:01]} 38. Kd4 {[%emt 0:00:06]} Rd7 {[%emt 0:00:42]} 39. a6 {[%emt 0:00:33]} Kc6+ {[%emt 0:00:19]} 40. Kc3 {[%emt 0:00:31]} d2 {[%emt 0:00:32]} 41. Rd1 {[%emt 0:00:11]} Bxa6 {[%emt 0:00:05]} 42. Rxd2 {[%emt 0:00:04]} Rxd2 {[%emt 0:00:03]} 43. Kxd2 {[%emt 0:00:03]} Kd5 {[%emt 0:00:03]} 44. Ke3 {[%emt 0:00:04]} Ke5 {[%emt 0:00:03]} 45. Kf3 {[%emt 0:00:04]} Bb7+ {[%emt 0:00:07]} 46. Kg3 {[%emt 0:00:04]} Ke4 {[%emt 0:00:03]} 47. Kh4 {[%emt 0:00:58]} Bd5 {[%emt 0:00:08]} 48. Kh5 {[%emt 0:00:04]} Bf7+ {[%emt 0:00:03]} 49. Kh4 {[%emt 0:00:03]} Kf4 {[%emt 0:00:03]} 50. Kh3 {[%emt 0:00:04]} h5 {[%emt 0:00:18]} 51. gxh5 {[%emt 0:00:23]} Bxh5 {[%emt 0:00:06]} 52. Kh4 {[%emt 0:00:10]} Bg4 {[%emt 0:00:14]} 53. h3 {[%emt 0:00:07]} Bxf5 {[%emt 0:00:12]} 54. Kh5 {[%emt 0:00:06]} Bxh3 {[%emt 0:00:13]} 55. Kg6 {[%emt 0:00:02]} f5 {[%emt 0:00:05]} 0-1

[Event "EYCC Open U10 2021"]
[Site "Tornelo"]
[Date "2021.10.15"]
[Round "3.4"]
[White "Fester, Harel"]
[Black "Petukhov, Dmitriy"]
[Result "0-1"]
[ECO "B23"]
[WhiteElo "1480"]
[BlackElo "1769"]
[Annotator "NA"]
[PlyCount "126"]
[EventDate "2021.10.15"]
[EventType "swiss"]
[EventCountry "NET"]
[SourceTitle "playchess.com"]
[Source "ChessBase"]
[SourceQuality "1"]
[TimeControl "5400+30"]

1. e4 {[%emt 0:00:30]} c5 {[%emt 0:00:38]} 2. Nc3 {[%emt 0:00:05]} Nc6 {[%emt 0:00:06]} 3. Bb5 {[%emt 0:00:06]} Nd4 {[%emt 0:00:06]} 4. Nf3 {[%emt 0:00:06]} Nxb5 {[%emt 0:00:08]} 5. Nxb5 {[%emt 0:00:04]} d6 {[%emt 0:00:05]} 6. Nc3 {[%emt 0:00:12]} g6 {[%emt 0:00:13]} 7. d4 {[%emt 0:00:07]} cxd4 {[%emt 0:00:13]} 8. Nxd4 {[%emt 0:00:17]} Nf6 {[%emt 0:00:13]} 9. f4 {[%emt 0:00:42]} Bg7 {[%emt 0:00:11]} 10. O-O {[%emt 0:00:27]} O-O {[%emt 0:00:05]} 11. h3 {[%emt 0:00:17]} a6 {[%emt 0:00:16]} 12. Be3 {[%emt 0:00:19]} Bd7 {[%emt 0:00:37]} 13. Qe1 {[%emt 0:01:52]} Qc7 {[%emt 0:02:48]} 14. Qh4 {[%emt 0:01:34]} Bc6 {[%emt 0:00:42]} 15. f5 {[%emt 0:01:58]} d5 {[%emt 0:04:50]} 16. Nxc6 {[%emt 0:01:49]} bxc6 {[%emt 0:00:30]} 17. exd5 {[%emt 0:07:00]} cxd5 {[%emt 0:01:26]} 18. Rad1 {[%emt 0:01:11]} Rad8 {[%emt 0:00:39]} 19. Qf2 {[%emt 0:03:17]} Qb7 {[%emt 0:01:40]} 20. Bb6 {[%emt 0:02:27]} Rd7 {[%emt 0:01:14]} 21. Bd4 {[%emt 0:11:59]} Rfd8 {[%emt 0:00:52]} 22. Na4 {[%emt 0:00:59]} Ne4 {[%emt 0:00:25]} 23. Qe3 {[%emt 0:00:38]} e5 {[%emt 0:05:47]} 24. fxe6 {[%emt 0:03:35]} fxe6 {[%emt 0:00:09]} 25. Bb6 {[%emt 0:00:27]} Rc8 {[%emt 0:00:41]} 26. Qb3 {[%emt 0:07:32]} Qc6 {[%emt 0:01:36]} 27. Rfe1 {[%emt 0:05:31]} Rf7 {[%emt 0:00:45]} 28. c3 {[%emt 0:02:04]} Be5 {[%emt 0:02:55]} 29. Bd4 {[%emt 0:02:35]} Bxd4+ {[%emt 0:00:09]} 30. cxd4 {[%emt 0:00:18]} Qc2 {[%emt 0:00:25]} 31. Qxc2 {[%emt 0:00:41]} Rxc2 {[%emt 0:00:10]} 32. Rc1 {[%emt 0:00:28]} Rff2 {[%emt 0:00:52]} 33. Rxc2 {[%emt 0:00:33]} Rxc2 {[%emt 0:00:04]} 34. Nc5 {[%emt 0:03:00]} Nxc5 {[%emt 0:00:37]} 35. dxc5 {[%emt 0:00:21]} Kf7 {[%emt 0:02:38]} 36. b4 {[%emt 0:02:08]} Ke7 {[%emt 0:00:29]} 37. a4 {[%emt 0:01:33]} Rc4 {[%emt 0:00:25]} 38. Rb1 {[%emt 0:00:17]} d4 {[%emt 0:00:29]} 39. Kf2 {[%emt 0:01:05]} e5 {[%emt 0:00:27]} 40. Kf3 {[%emt 0:00:47]} Ke6 {[%emt 0:00:05]} 41. b5 {[%emt 0:01:27]} Rc3+ {[%emt 0:00:17]} 42. Ke2 {[%emt 0:00:10]} Rxc5 {[%emt 0:01:17]} 43. b6 {[%emt 0:02:20]} Rc8 {[%emt 0:00:09]} 44. a5 {[%emt 0:00:23]} Kd5 {[%emt 0:00:09]} 45. Kd2 {[%emt 0:01:00]} e4 {[%emt 0:00:26]} 46. Rb3 {[%emt 0:04:03]} Rf8 {[%emt 0:01:37]} 47. b7 {[%emt 0:08:35]} Rb8 {[%emt 0:00:34]} 48. Rb6 {[%emt 0:00:49]} Ke5 {[%emt 0:01:44]} 49. g3 {[%emt 0:01:37]} g5 {[%emt 0:00:20]} 50. Rxa6 {[%emt 0:03:51]} Rxb7 {[%emt 0:00:34]} 51. Ra8 {[%emt 0:00:15]} e3+ {[%emt 0:01:13]} 52. Ke2 {[%emt 0:01:36]} Rb2+ {[%emt 0:00:15]} 53. Kd3 {[%emt 0:00:37]} Rd2+ {[%emt 0:00:21]} 54. Kc4 {[%emt 0:00:29]} Kd6 {[%emt 0:00:48]} 55. Ra6+ {[%emt 0:00:36]} Kc7 {[%emt 0:00:15]} 56. Re6 {[%emt 0:00:23]} e2 {[%emt 0:03:49]} 57. a6 {[%emt 0:00:51]} d3 {[%emt 0:02:51]} 58. Re7+ {[%emt 0:01:33]} Kb8 {[%emt 0:00:34]} 59. Kb5 {[%emt 0:00:28]} Rb2+ {[%emt 0:00:12]} 60. Kc6 {[%emt 0:00:13]} Rb1 {[%emt 0:00:27]} 61. Re8+ {[%emt 0:01:03]} Ka7 {[%emt 0:00:10]} 62. Re7+ {[%emt 0:00:04]} Kxa6 {[%emt 0:00:08]} 63. Re8 {[%emt 0:00:04]} Rc1+ {[%emt 0:00:06]} 0-1

[Event "EYCC Open U10 2021"]
[Site "Tornelo"]
[Date "2021.10.15"]
[Round "3.5"]
[White "Ivanov, Andrey A."]
[Black "Nemitz, Alfred"]
[Result "1-0"]
[ECO "C30"]
[WhiteElo "2180"]
[BlackElo "1450"]
[Annotator "NA"]
[PlyCount "59"]
[EventDate "2021.10.15"]
[EventType "swiss"]
[EventCountry "NET"]
[SourceTitle "playchess.com"]
[Source "ChessBase"]
[SourceQuality "1"]
[TimeControl "5400+30"]

1. e4 {[%emt 0:00:30]} e5 {[%emt 0:00:41]} 2. Nc3 {[%emt 0:00:14]} Nf6 {[%emt 0:00:31]} 3. f4 {[%emt 0:00:10]} d6 {[%emt 0:02:00]} 4. Nf3 {[%emt 0:00:28]} Nbd7 {[%emt 0:00:47]} 5. Bc4 {[%emt 0:00:24]} Be7 {[%emt 0:03:24]} 6. O-O {[%emt 0:00:19]} O-O {[%emt 0:00:15]} 7. d3 {[%emt 0:00:24]} c6 {[%emt 0:00:25]} 8. a4 {[%emt 0:02:01]} b6 {[%emt 0:05:07]} 9. h3 {[%emt 0:03:06]} Bb7 {[%emt 0:00:55]} 10. fxe5 {[%emt 0:04:19]} Nxe5 {[%emt 0:00:52]} 11. Nxe5 {[%emt 0:00:27]} dxe5 {[%emt 0:00:16]} 12. Be3 {[%emt 0:02:58]} Qd6 {[%emt 0:04:06]} 13. Ne2 {[%emt 0:01:16]} Bc8 {[%emt 0:03:15]} 14. Ng3 {[%emt 0:00:40]} Re8 {[%emt 0:06:58]} 15. Nh5 {[%emt 0:01:58]} Be6 {[%emt 0:02:04]} 16. Bxe6 {[%emt 0:05:22]} Qxe6 {[%emt 0:01:19]} 17. Ng3 {[%emt 0:00:54]} c5 {[%emt 0:01:47]} 18. Nf5 {[%emt 0:00:18]} Bf8 {[%emt 0:00:59]} 19. Qf3 {[%emt 0:01:30]} g6 {[%emt 0:02:48]} 20. Nh6+ {[%emt 0:01:58]} Kg7 {[%emt 0:02:13]} 21. Bg5 {[%emt 0:01:20]} Be7 {[%emt 0:00:08]} 22. Rf2 {[%emt 0:00:52]} Rf8 {[%emt 0:12:12]} 23. Raf1 {[%emt 0:01:16]} Nxe4 {[%emt 0:01:02]} 24. Qxe4 {[%emt 0:02:30]} Bxg5 {[%emt 0:00:21]} 25. Rxf7+ {[%emt 0:00:18]} Rxf7 {[%emt 0:11:10]} 26. Nxf7 {[%emt 0:00:13]} Bf4 {[%emt 0:01:05]} 27. Qxa8 {[%emt 0:01:19]} Qxf7 {[%emt 0:00:11]} 28. Qf3 {[%emt 0:00:07]} Qe6 {[%emt 0:01:23]} 29. g3 {[%emt 0:00:26]} Bg5 {[%emt 0:01:09]} 30. Qf8# {[%emt 0:00:10]} 1-0

[Event "EYCC Open U10 2021"]
[Site "Tornelo"]
[Date "2021.10.15"]
[Round "3.6"]
[White "Diachek, Andriy"]
[Black "Williams, Oscar"]
[Result "0-1"]
[ECO "B50"]
[WhiteElo "1689"]
[BlackElo "1405"]
[Annotator "NA"]
[PlyCount "86"]
[EventDate "2021.10.15"]
[EventType "swiss"]
[EventCountry "NET"]
[SourceTitle "playchess.com"]
[Source "ChessBase"]
[SourceQuality "1"]
[TimeControl "5400+30"]

1. e4 {[%emt 0:00:30]} c5 {[%emt 0:00:40]} 2. Nf3 {[%emt 0:00:08]} d6 {[%emt 0:00:05]} 3. c3 {[%emt 0:00:05]} Nf6 {[%emt 0:00:03]} 4. Be2 {[%emt 0:00:07]} g6 {[%emt 0:00:07]} 5. O-O {[%emt 0:00:04]} Bg7 {[%emt 0:00:06]} 6. Bb5+ {[%emt 0:00:58]} Bd7 {[%emt 0:00:26]} 7. Bxd7+ {[%emt 0:00:18]} Nbxd7 {[%emt 0:00:09]} 8. Re1 {[%emt 0:00:04]} O-O {[%emt 0:00:11]} 9. d4 {[%emt 0:00:04]} Rc8 {[%emt 0:00:40]} 10. d5 {[%emt 0:00:36]} c4 {[%emt 0:01:39]} 11. Nd4 {[%emt 0:01:26]} Nc5 {[%emt 0:00:40]} 12. f3 {[%emt 0:02:23]} Nd3 {[%emt 0:00:59]} 13. Re2 {[%emt 0:02:06]} Nxc1 {[%emt 0:00:34]} 14. Qxc1 {[%emt 0:00:39]} Qb6 {[%emt 0:00:16]} 15. Na3 {[%emt 0:02:42]} Nd7 {[%emt 0:00:45]} 16. Nac2 {[%emt 0:02:49]} Nc5 {[%emt 0:03:35]} 17. Rb1 {[%emt 0:13:13]} e5 {[%emt 0:07:06]} 18. dxe6 {[%emt 0:02:22]} fxe6 {[%emt 0:00:20]} 19. Ne3 {[%emt 0:10:27]} Nd3 {[%emt 0:04:27]} 20. Qd2 {[%emt 0:01:48]} Bxd4 {[%emt 0:00:59]} 21. cxd4 {[%emt 0:01:15]} Qxd4 {[%emt 0:00:07]} 22. Qc3 {[%emt 0:01:22]} Nf4 {[%emt 0:09:50]} 23. Rd2 {[%emt 0:06:09]} Qc5 {[%emt 0:00:49]} 24. Kh1 {[%emt 0:03:31]} b5 {[%emt 0:13:26]} 25. Qd4 {[%emt 0:29:51]} Nd3 {[%emt 0:06:03]} 26. Qxc5 {[%emt 0:00:49]} Rxc5 {[%emt 0:00:31]} 27. b3 {[%emt 0:00:57]} d5 {[%emt 0:03:21]} 28. exd5 {[%emt 0:03:19]} exd5 {[%emt 0:01:17]} 29. b4 {[%emt 0:02:05]} Rcc8 {[%emt 0:00:23]} 30. Nxd5 {[%emt 0:00:23]} Rce8 {[%emt 0:06:01]} 31. Nc3 {[%emt 0:03:58]} a6 {[%emt 0:03:10]} 32. a4 {[%emt 0:01:55]} Rf5 {[%emt 0:01:54]} 33. axb5 {[%emt 0:01:05]} axb5 {[%emt 0:00:18]} 34. Re2 {[%emt 0:02:38]} Rxe2 {[%emt 0:02:29]} 35. Nxe2 {[%emt 0:00:06]} Kf7 {[%emt 0:00:48]} 36. Nc3 {[%emt 0:01:03]} Ke6 {[%emt 0:01:10]} 37. g4 {[%emt 0:04:02]} Rxf3 {[%emt 0:03:02]} 38. Nxb5 {[%emt 0:00:20]} Kd5 {[%emt 0:00:54]} 39. Kg2 {[%emt 0:00:59]} Rf6 {[%emt 0:02:38]} 40. Nc7+ {[%emt 0:01:11]} Kd4 {[%emt 0:00:26]} 41. b5 {[%emt 0:00:11]} c3 {[%emt 0:01:11]} 42. b6 {[%emt 0:00:52]} c2 {[%emt 0:01:43]} 43. Nb5+ {[%emt 0:00:15]} Kc5 {[%emt 0:00:12]} 0-1

[Event "EYCC Open U10 2021"]
[Site "Tornelo"]
[Date "2021.10.15"]
[Round "3.7"]
[White "Ekmekcioglu, Gokdeniz"]
[Black "Dumbelovic, Novak"]
[Result "1-0"]
[ECO "E68"]
[WhiteElo "1463"]
[BlackElo "1688"]
[Annotator "NA"]
[PlyCount "95"]
[EventDate "2021.10.15"]
[EventType "swiss"]
[EventCountry "NET"]
[SourceTitle "playchess.com"]
[Source "ChessBase"]
[SourceQuality "1"]
[TimeControl "5400+30"]

1. d4 {[%emt 0:00:30]} Nf6 {[%emt 0:01:05]} 2. Nf3 {[%emt 0:01:27]} g6 {[%emt 0:02:04]} 3. g3 {[%emt 0:01:29]} Bg7 {[%emt 0:00:50]} 4. Bg2 {[%emt 0:02:04]} O-O {[%emt 0:01:39]} 5. O-O {[%emt 0:01:11]} d6 {[%emt 0:03:28]} 6. c4 {[%emt 0:01:48]} Nbd7 {[%emt 0:04:15]} 7. Nc3 {[%emt 0:02:28]} e5 {[%emt 0:04:45]} 8. e4 {[%emt 0:03:43]} Ne8 {[%emt 0:03:23]} 9. d5 {[%emt 0:03:55]} f5 {[%emt 0:01:40]} 10. Ng5 {[%emt 0:02:26]} Nc5 {[%emt 0:02:02]} 11. b4 {[%emt 0:04:09]} h6 {[%emt 0:01:28]} 12. bxc5 {[%emt 0:01:20]} hxg5 {[%emt 0:00:35]} 13. exf5 {[%emt 0:01:19]} gxf5 {[%emt 0:00:48]} 14. cxd6 {[%emt 0:02:19]} Nxd6 {[%emt 0:00:20]} 15. c5 {[%emt 0:01:10]} Nf7 {[%emt 0:02:12]} 16. Ba3 {[%emt 0:01:37]} Qf6 {[%emt 0:01:12]} 17. Nb5 {[%emt 0:02:09]} Qd8 {[%emt 0:02:28]} 18. c6 {[%emt 0:03:07]} Nd6 {[%emt 0:01:02]} 19. Nxd6 {[%emt 0:00:39]} cxd6 {[%emt 0:00:08]} 20. Rc1 {[%emt 0:01:55]} Qe7 {[%emt 0:01:06]} 21. Qb3 {[%emt 0:01:38]} b6 {[%emt 0:02:05]} 22. Qb4 {[%emt 0:02:00]} Rf6 {[%emt 0:02:51]} 23. c7 {[%emt 0:01:24]} Bb7 {[%emt 0:01:20]} 24. Rc2 {[%emt 0:02:10]} Qd7 {[%emt 0:01:24]} 25. Rfc1 {[%emt 0:00:59]} Rc8 {[%emt 0:00:32]} 26. Bf1 {[%emt 0:01:39]} Bf8 {[%emt 0:01:24]} 27. Bb5 {[%emt 0:01:14]} Qh7 {[%emt 0:00:53]} 28. Qa4 {[%emt 0:02:10]} Rh6 {[%emt 0:06:15]} 29. f3 {[%emt 0:00:24]} a6 {[%emt 0:13:34]} 30. Bxa6 {[%emt 0:01:48]} Ra8 {[%emt 0:00:58]} 31. c8=Q {[%emt 0:06:37]} Bxc8 {[%emt 0:00:08]} 32. Rxc8 {[%emt 0:01:23]} Rxc8 {[%emt 0:03:09]} 33. Rxc8 {[%emt 0:00:25]} Rxh2 {[%emt 0:03:32]} 34. Rxf8+ {[%emt 0:00:11]} Kxf8 {[%emt 0:00:04]} 35. Bxd6+ {[%emt 0:00:02]} Kf7 {[%emt 0:02:47]} 36. Qd7+ {[%emt 0:00:06]} Kf6 {[%emt 0:00:07]} 37. Qe6+ {[%emt 0:00:05]} Kg7 {[%emt 0:00:09]} 38. Bxe5+ {[%emt 0:00:13]} Kf8 {[%emt 0:00:08]} 39. Qf6+ {[%emt 0:00:54]} Kg8 {[%emt 0:00:18]} 40. Qxg5+ {[%emt 0:00:11]} Kf7 {[%emt 0:00:07]} 41. Qf6+ {[%emt 0:00:10]} Kg8 {[%emt 0:00:04]} 42. Qd8+ {[%emt 0:00:51]} Kf7 {[%emt 0:00:06]} 43. Qd7+ {[%emt 0:00:03]} Kf8 {[%emt 0:00:31]} 44. Qxh7 {[%emt 0:00:35]} Rxh7 {[%emt 0:00:05]} 45. d6 {[%emt 0:00:12]} Ke8 {[%emt 0:00:20]} 46. Bb5+ {[%emt 0:00:09]} Kd8 {[%emt 0:00:04]} 47. Bf6+ {[%emt 0:00:03]} Kc8 {[%emt 0:00:03]} 48. d7+ {[%emt 0:00:03]} 1-0